bitfinex/quotes_SOLUSD_20240729
["timestamp","ask_amount","ask_price","bid_price","bid_amount"]
[1722215957981,20.0,187.97,187.93,27.47]
[1722215958482,20.0,187.94,187.89,20.0]
[1722215958685,20.0,187.94,187.88,20.0]
[1722215959190,20.0,187.89,187.85,0.7721613]
[1722215959369,20.34,187.88,187.85,0.7721613]
[1722215959560,20.0,187.9,187.85,0.7721613]
[1722215959764,20.34,187.92,187.85,0.7721613]
[1722215960581,20.17,187.92,187.85,20.7721613]
[1722215960780,20.17,187.92,187.88,27.47]
[1722215961012,0.17,187.92,187.88,27.47]
[1722215961299,20.0,187.86,187.85,0.7721613]
[1722215961465,20.34,187.86,187.85,0.7721613]
[1722215963482,20.0,187.89,187.85,0.7721613]
[1722215963876,20.0,187.92,187.85,0.7721613]
[1722215964699,20.0,187.92,187.85,65.7721613]
[1722215964878,20.0,187.92,187.85,45.7721613]
[1722215965370,24.2572,187.92,187.85,0.7721613]
[1722215965577,20.0,187.86,187.85,0.7721613]
[1722215966009,20.5,187.86,187.85,0.7721613]
[1722215966388,20.84,187.86,187.85,0.7721613]
[1722215966694,0.84,187.86,187.85,0.7721613]
[1722215966868,20.34,187.86,187.85,0.7721613]
[1722215967192,45.0984,187.86,187.85,0.7721613]
[1722215967395,90.0984,187.86,187.85,0.7721613]
[1722215967695,106.0584,187.86,187.85,0.7721613]
[1722215968077,122.6753,187.86,187.85,0.7721613]
[1722215969079,20.0,187.79,187.72,20.0]
[1722215969280,0.17,187.78,187.72,20.0]
[1722215971183,20.0,187.84,187.75,27.47]
[1722215971383,20.0,187.84,187.76,45.0]
[1722215972684,20.0,187.81,187.68,6.1088]
[1722215972889,20.0,187.81,187.71,27.47]
[1722215973197,20.0,187.78,187.71,27.47]
[1722215973387,20.17,187.8,187.71,27.47]
[1722215973707,0.17,187.79,187.75,27.47]
[1722215973997,20.0,187.85,187.75,27.47]
[1722215974180,20.0,187.86,187.79,27.47]
[1722215974889,20.0,187.9,187.83,27.47]
[1722215975278,20.0,187.88,187.83,27.47]
[1722215975601,20.0,187.92,187.83,27.47]
[1722215975897,20.0,187.9,187.84,45.0]
[1722215976509,20.0,187.94,187.84,46.06444419]
[1722215976715,20.0,187.94,187.87,27.47]
[1722215977784,20.0,187.98,187.88,45.0]
[1722215978090,20.0,187.98,187.91,27.47]
[1722215978391,20.0,188.02,187.92,46.06412559]
[1722215978799,20.0,188.02,187.92,45.0]
[1722215979101,20.0,188.05,187.95,27.47]
[1722215979275,20.0,188.05,187.96,65.0]
[1722215981483,20.0,188.03,187.96,65.0]
[1722215982099,20.0,188.07,187.96,65.0]
[1722215982302,20.0,188.05,187.96,65.0]
[1722215983106,20.0,188.0,187.9,6.5249]
[1722215983291,0.17,187.99,187.92,27.47]
[1722215983604,20.0,187.98,187.92,27.47]
[1722215983812,0.17,187.97,187.92,27.47]
[1722215983986,20.0,188.01,187.92,27.47]
[1722215984182,20.0,188.02,187.92,27.47]
[1722215984409,0.17,188.01,187.92,27.47]
[1722215985202,0.17,188.01,187.93,45.0]
[1722215985609,20.0,188.05,187.96,27.47]
[1722215985814,0.17,188.04,187.97,45.0]
[1722215986308,40.64038043,188.08,187.97,45.0]
[1722215986508,5.49888043,188.08,188.04,27.47]
[1722215986718,20.0,188.13,188.04,27.47]
[1722215986890,20.0,188.15,188.08,27.47]
[1722215988003,20.0,188.12,188.08,27.47]
[1722215988203,20.0,188.14,188.08,27.47]
[1722215988392,20.0,188.12,188.08,27.47]
[1722215988787,0.34,188.13,188.08,27.47]
[1722215989022,0.17,188.14,188.08,27.47]
[1722215989393,0.34,188.14,188.08,27.47]
[1722215989697,20.0,188.17,188.09,1.06322761]
[1722215989894,20.0,188.17,188.08,27.47]
[1722215990104,35.713,188.2,188.09,45.0]
[1722215990715,35.713,188.2,188.12,27.47]
[1722215990716,20.0,188.19,188.12,27.47]
[1722215990897,35.713,188.2,188.12,27.47]
[1722215991098,20.0,188.18,188.12,27.47]
[1722215991714,20.0,188.14,188.08,27.47]
[1722215992027,20.0,188.16,188.08,27.47]
[1722215992330,20.0,188.14,188.08,27.47]
[1722215992622,0.17,188.13,188.08,27.47]
[1722215992919,20.0,188.16,188.08,27.47]
[1722215993117,20.0,188.18,188.09,45.0]
[1722215993315,0.17,188.17,188.09,45.0]
[1722215993505,0.17,188.17,188.09,46.06299663]
[1722215993821,0.17,188.17,188.12,27.47]
[1722215994023,20.17,188.2,188.12,27.47]
[1722215994195,0.17,188.19,188.12,27.47]
[1722215994504,0.17,188.19,188.13,45.0]
[1722215994911,0.17,188.19,188.13,51.085]
[1722215995113,0.17,188.19,188.14,1.06292545]
[1722215995326,24.2499,188.24,188.15,1.06288156]
[1722215995507,20.0,188.22,188.13,51.085]
[1722215995910,20.0,188.24,188.13,51.085]
[1722215996498,20.0,188.22,188.13,51.085]
[1722215996702,0.5,188.21,188.13,51.085]
[1722215996921,20.84,188.2,188.13,6.085]
[1722215997227,25.0908,188.2,188.12,27.47]
[1722215997728,20.0,188.18,188.12,27.47]
[1722215997903,20.67,188.2,188.12,27.47]
[1722215998224,20.0,188.18,188.12,27.47]
[1722215998419,0.17,188.17,188.12,27.47]
[1722215998600,0.17,188.2,188.12,27.47]
[1722215998796,0.34,188.21,188.12,27.47]
[1722215999320,0.34,188.21,188.13,45.0]
[1722215999505,0.17,188.21,188.13,45.0]
[1722216000012,0.17,188.21,188.13,46.0627876]
[1722216000318,20.17,188.21,188.16,27.47]
[1722216001121,0.17,188.21,188.16,27.47]
[1722216001320,0.17,188.22,188.17,1.06274261]
[1722216002015,0.17,188.22,188.16,27.47]
[1722216002396,0.17,188.22,188.17,1.06271224]
[1722216002727,0.17,188.24,188.17,45.0]
[1722216002931,20.0,188.22,188.17,45.0]
[1722216003134,20.0,188.22,188.16,27.47]
[1722216003426,9.74436636,188.28,188.17,46.06257228]
[1722216003602,4.249,188.28,188.17,45.0]
[1722216003795,20.0,188.29,188.17,45.0]
[1722216004011,20.0,188.29,188.2,27.47]
[1722216004202,20.0,188.31,188.22,6.1175]
[1722216004403,0.7721613,188.32,188.22,6.1175]
[1722216004623,20.0,188.31,188.23,45.0]
[1722216005901,0.7721613,188.32,188.23,45.0]
[1722216007412,20.0,188.29,188.23,45.0]
[1722216007808,20.7721613,188.32,188.24,27.47]
[1722216008006,0.17,188.31,188.25,45.0]
[1722216010825,0.17,188.31,188.26,1.06222346]
[1722216011009,0.7721613,188.32,188.27,1.06214226]
[1722216011325,0.7721613,188.32,188.28,27.47]
[1722216011529,0.7721613,188.32,188.29,1.06208263]
[1722216011710,0.7721613,188.32,188.3,1.06193612]
[1722216012015,0.7721613,188.32,188.29,46.06191352]
[1722216012213,0.7721613,188.32,188.3,1.06187888]
[1722216012415,0.7721613,188.32,188.29,45.0]
[1722216012614,0.7721613,188.32,188.28,27.47]
[1722216012827,0.7721613,188.32,188.24,27.47]
[1722216013035,20.0,188.3,188.22,6.1175]
[1722216013205,4.2496,188.25,188.19,27.47]
[1722216013405,0.34,188.24,188.19,27.47]
[1722216013717,0.17,188.24,188.19,27.47]
[1722216014402,20.17,188.24,188.19,27.47]
[1722216014607,20.0,188.22,188.15,27.47]
[1722216014924,0.17,188.21,188.13,21.7531]
[1722216015421,20.0,188.19,188.13,6.2726]
[1722216015630,0.17,188.18,188.13,6.2726]
[1722216016609,20.0,188.22,188.13,6.2726]
[1722216016811,0.17,188.21,188.14,45.0]
[1722216017328,0.17,188.21,188.13,6.2726]
[1722216017329,20.0,188.19,188.13,6.2726]
[1722216017511,0.17,188.18,188.13,6.2726]
[1722216017711,0.17,188.21,188.13,6.2726]
[1722216018730,0.17,188.21,188.14,65.0]
[1722216019913,0.17,188.21,188.16,27.47]
[1722216020529,20.0,188.23,188.16,27.47]
[1722216020733,0.17,188.22,188.16,27.47]
[1722216021053,20.0,188.21,188.16,27.47]
[1722216021524,0.17,188.2,188.16,27.47]
[1722216021924,0.17,188.22,188.16,27.47]
[1722216022117,20.0,188.25,188.16,27.47]
[1722216022629,20.0,188.25,188.17,45.0]
[1722216022811,0.5,188.24,188.17,45.0]
[1722216023010,20.0,188.23,188.17,45.0]
[1722216023223,20.0,188.23,188.14,20.0]
[1722216023431,20.0,188.23,188.15,27.47]
[1722216023733,20.0,188.23,188.16,45.0]
[1722216024035,0.34,188.22,188.16,45.0]
[1722216025137,20.34,188.22,188.16,45.0]
[1722216025512,20.0,188.26,188.19,27.47]
[1722216025712,0.5,188.31,188.2,45.0]
[1722216025713,20.0,188.29,188.2,45.0]
[1722216025932,16.46,188.31,188.2,45.0]
[1722216025933,20.0,188.31,188.2,45.0]
[1722216026221,20.0,188.31,188.23,27.47]
[1722216026431,0.7721613,188.32,188.24,45.0]
[1722216027144,0.7721613,188.32,188.27,27.47]
[1722216027366,0.7721613,188.32,188.28,45.0]
[1722216028122,0.7721613,188.32,188.27,27.47]
[1722216028535,0.7721613,188.32,188.23,33.7735]
[1722216028536,20.5,188.31,188.23,33.7735]
[1722216028735,0.34,188.3,188.24,65.0]
[1722216029937,0.17,188.3,188.24,65.0]
[1722216030138,0.17,188.31,188.24,65.0]
[1722216030520,0.17,188.31,188.24,66.06214998]
[1722216030848,0.17,188.31,188.24,65.0]
[1722216031355,0.7721613,188.32,188.27,27.47]
[1722216031529,0.7721613,188.32,188.28,45.0]
[1722216033146,0.7721613,188.32,188.27,27.47]
[1722216033463,0.7721613,188.32,188.28,20.0]
[1722216034147,0.7721613,188.32,188.27,27.47]
[1722216034451,20.0,188.3,188.27,27.47]
[1722216034932,0.17,188.29,188.27,27.47]
[1722216035332,0.17,188.31,188.27,27.47]
[1722216035529,0.34,188.31,188.27,27.47]
[1722216035758,20.0,188.3,188.27,27.47]
[1722216035926,0.17,188.29,188.27,27.47]
[1722216036827,0.7721613,188.32,188.28,65.0]
[1722216037040,30.6509,188.43,188.28,93.53181347]
[1722216037041,6.4053,188.43,188.28,93.53181347]
[1722216037252,6.4053,188.43,188.35,27.47]
[1722216037442,20.0,188.44,188.35,27.47]
[1722216037742,20.0,188.44,188.36,45.0]
[1722216038847,20.0,188.44,188.37,1.06158677]
[1722216039638,20.0,188.44,188.36,45.0]
[1722216040061,20.0,188.42,188.36,45.0]
[1722216041338,0.17,188.41,188.35,27.47]
[1722216041543,0.17,188.41,188.36,20.0]
[1722216041841,0.17,188.43,188.36,20.0]
[1722216042044,0.34,188.43,188.36,20.0]
[1722216043256,0.17,188.43,188.37,45.0]
[1722216043758,0.34,188.43,188.36,20.0]
[1722216045139,0.17,188.43,188.36,20.0]
[1722216045352,20.0,188.46,188.39,27.47]
[1722216045659,20.0,188.46,188.4,21.06144602]
[1722216046737,0.34,188.45,188.4,21.06144602]
[1722216047849,0.34,188.45,188.4,20.0]
[1722216048735,20.0,188.44,188.35,27.47]
[1722216048936,20.0,188.42,188.36,20.0]
[1722216053751,20.5,188.42,188.35,27.47]
[1722216054051,0.17,188.41,188.35,27.47]
[1722216054254,20.0,188.42,188.36,45.0]
[1722216054959,20.0,188.46,188.36,46.06159184]
[1722216055864,20.0,188.46,188.37,20.0]
[1722216056070,20.0,188.49,188.39,27.47]
[1722216056262,20.0,188.49,188.4,21.06125777]
[1722216056560,42.10569966,188.51,188.43,27.47]
[1722216056761,42.10569966,188.51,188.44,1.06123049]
[1722216057342,0.17,188.5,188.43,27.47]
[1722216057549,0.34,188.5,188.43,27.47]
[1722216059870,20.0,188.48,188.43,27.47]
[1722216060067,0.17,188.47,188.43,27.47]
[1722216060268,0.34,188.5,188.43,27.47]
[1722216061090,20.0,188.48,188.43,27.47]
[1722216061270,0.17,188.47,188.43,27.47]
[1722216061573,0.34,188.5,188.43,27.47]
[1722216062066,20.0,188.49,188.43,27.47]
[1722216062375,0.17,188.48,188.43,27.47]
[1722216062759,0.34,188.48,188.4,65.0]
[1722216063256,20.0,188.45,188.37,27.47]
[1722216063457,0.17,188.44,188.37,27.47]
[1722216063773,20.0,188.43,188.37,27.47]
[1722216063956,0.17,188.42,188.37,27.47]
[1722216066169,0.17,188.42,188.33,27.47]
[1722216066170,20.0,188.41,188.33,27.47]
[1722216066369,0.17,188.4,188.34,20.0]
[1722216066575,0.17,188.42,188.34,20.0]
[1722216067247,20.0,188.45,188.35,1.0615898]
[1722216067447,20.7041,188.5,188.37,27.47]
[1722216067448,20.0,188.49,188.37,27.47]
[1722216067750,20.0,188.49,188.38,66.06140287]
[1722216068161,20.0,188.49,188.38,65.0]
[1722216069372,20.0,188.49,188.41,27.47]
[1722216069882,22.10607746,188.51,188.41,27.47]
[1722216069883,42.10607746,188.51,188.42,45.0]
[1722216071160,42.10607746,188.51,188.44,24.38]
[1722216072390,26.26977746,188.51,188.44,24.38]
[1722216073055,0.5,188.5,188.44,24.38]
[1722216073361,0.17,188.49,188.44,24.38]
[1722216073584,0.34,188.5,188.44,24.38]
[1722216074083,20.0,188.48,188.41,24.38]
[1722216074283,20.0,188.46,188.41,24.38]
[1722216074472,0.34,188.45,188.38,24.38]
[1722216074869,20.0,188.44,188.38,24.38]
[1722216075067,0.17,188.45,188.38,24.38]
[1722216075282,20.0,188.48,188.38,24.38]
[1722216075479,20.0,188.46,188.38,24.38]
[1722216075680,0.17,188.45,188.38,24.38]
[1722216075879,20.5,188.5,188.38,24.38]
[1722216076186,20.0,188.47,188.39,45.0]
[1722216076486,20.0,188.47,188.38,24.38]
[1722216076487,20.0,188.43,188.38,24.38]
[1722216076684,0.17,188.42,188.35,24.38]
[1722216076991,0.84,188.42,188.35,24.38]
[1722216077286,0.34,188.42,188.35,24.38]
[1722216078176,0.17,188.42,188.35,24.38]
[1722216078587,0.17,188.42,188.36,45.0]
[1722216079595,16.3611,188.46,188.38,24.38]
[1722216079766,0.34,188.45,188.39,45.0]
[1722216079962,0.17,188.45,188.39,45.0]
[1722216080160,20.34,188.45,188.39,45.0]
[1722216080897,0.17,188.45,188.39,45.0]
[1722216081185,20.17,188.45,188.39,45.0]
[1722216083191,9.57960733,188.44,188.39,45.0]
[1722216083491,20.17,188.45,188.39,45.0]
[1722216083671,9.5796081,188.44,188.39,45.0]
[1722216083870,20.17,188.45,188.39,45.0]
[1722216084077,9.57959975,188.44,188.39,45.0]
[1722216084389,20.17,188.45,188.39,45.0]
[1722216084778,9.5796081,188.44,188.39,45.0]
[1722216085083,20.0,188.5,188.41,24.38]
[1722216085393,17.0632613,188.51,188.44,24.38]
[1722216085394,9.57831368,188.49,188.44,24.38]
[1722216085585,6.27174942,188.51,188.44,24.38]
[1722216085774,0.7721613,188.51,188.45,45.0]
[1722216087894,0.17,188.5,188.44,24.38]
[1722216088091,20.34,188.5,188.44,24.38]
[1722216088885,0.7721613,188.51,188.45,46.06115531]
[1722216089175,0.7721613,188.51,188.46,1.06101271]
[1722216089768,0.7721613,188.51,188.45,46.06098995]
[1722216090297,0.7721613,188.51,188.45,45.0]
[1722216090472,0.7721613,188.51,188.47,24.38]
[1722216090670,0.7721613,188.51,188.48,46.06090202]
[1722216090891,0.7721613,188.51,188.49,1.06084146]
[1722216091130,0.7721613,188.51,188.48,45.0]
[1722216091609,0.7721613,188.51,188.49,1.06084449]
[1722216091909,0.7721613,188.51,188.5,24.38]
[1722216092078,0.7721613,188.51,188.5,69.38]
[1722216092272,0.7721613,188.51,188.48,45.0]
[1722216092601,0.7721613,188.51,188.46,24.38]
[1722216092779,0.7721613,188.51,188.47,45.0]
[1722216095400,0.7721613,188.51,188.46,24.38]
[1722216095781,0.7721613,188.51,188.47,45.0]
[1722216096289,0.7721613,188.51,188.46,24.38]
[1722216097777,0.7721613,188.51,188.47,45.0]
[1722216097985,0.7721613,188.51,188.48,1.06092366]
[1722216098285,0.7721613,188.51,188.47,45.0]
[1722216099210,0.7721613,188.51,188.47,46.06078305]
[1722216099778,0.7721613,188.51,188.47,45.0]
[1722216100405,0.7721613,188.51,188.47,46.06078273]
[1722216100697,0.7721613,188.51,188.47,45.0]
[1722216102279,0.7721613,188.51,188.46,24.38]
[1722216104188,0.7721613,188.51,188.47,45.0]
[1722216104387,0.7721613,188.51,188.46,24.38]
[1722216105806,0.7721613,188.51,188.47,46.06098602]
[1722216106909,0.7721613,188.51,188.47,45.0]
[1722216107410,0.7721613,188.51,188.48,1.06093979]
[1722216107611,0.7721613,188.51,188.49,1.06093208]
[1722216107798,0.7721613,188.51,188.47,45.0]
[1722216108510,0.7721613,188.51,188.45,24.38]
[1722216108687,0.7721613,188.51,188.46,45.0]
[1722216113522,20.0,188.5,188.39,1.06093208]
[1722216113690,20.0,188.48,188.39,24.38]
[1722216113891,20.0,188.46,188.39,24.38]
[1722216114092,20.0,188.44,188.34,24.38]
[1722216114594,0.17,188.45,188.37,24.38]
[1722216114914,0.34,188.45,188.37,24.38]
[1722216116694,0.34,188.45,188.38,45.0]
[1722216117108,0.34,188.45,188.37,24.38]
[1722216117109,20.0,188.44,188.37,24.38]
[1722216117399,0.17,188.43,188.37,24.38]
[1722216117920,24.2449,188.46,188.37,24.38]
[1722216117921,0.17,188.44,188.37,24.38]
[1722216118227,0.17,188.46,188.37,24.38]
[1722216118397,20.17,188.45,188.37,24.38]
[1722216118598,0.17,188.44,188.37,24.38]
[1722216119419,0.34,188.45,188.37,24.38]
[1722216120024,20.34,188.45,188.37,24.38]
[1722216120405,0.34,188.45,188.37,24.38]
[1722216120605,20.34,188.45,188.37,24.38]
[1722216120915,24.5853,188.45,188.37,24.38]
[1722216121111,20.0,188.43,188.37,24.38]
[1722216121322,0.17,188.42,188.37,24.38]
[1722216121523,20.17,188.45,188.37,24.38]
[1722216121707,0.17,188.44,188.38,45.0]
[1722216122618,20.34,188.45,188.38,45.0]
[1722216123122,0.34,188.45,188.38,45.0]
[1722216123419,0.17,188.44,188.38,45.0]
[1722216123628,4.5849,188.46,188.38,45.0]
[1722216123994,0.34,188.46,188.38,45.0]
[1722216124197,0.17,188.46,188.38,46.06135021]
[1722216125311,0.17,188.46,188.4,24.38]
[1722216125532,0.17,188.46,188.41,1.06129134]
[1722216126418,0.17,188.46,188.4,25.44131384]
[1722216126625,0.17,188.47,188.41,45.0]
[1722216126940,22.0603675,188.5,188.43,24.38]
[1722216127241,22.0603675,188.5,188.44,46.06107055]
[1722216127242,16.5505,188.5,188.44,46.06107055]
[1722216127739,16.5505,188.5,188.44,45.0]
[1722216128313,20.7945,188.5,188.44,45.0]
[1722216128527,20.7945,188.5,188.4,24.38]
[1722216128528,20.0,188.48,188.4,24.38]
[1722216128739,20.0,188.48,188.41,45.0]
[1722216129317,0.17,188.47,188.41,45.0]
[1722216130341,0.17,188.47,188.34,6.404]
[1722216130342,4.2453,188.45,188.37,24.38]
[1722216130539,4.2453,188.45,188.34,6.404]
[1722216130540,4.2458,188.42,188.34,24.38]
[1722216130715,0.17,188.41,188.34,24.38]
[1722216130909,6.5083,188.44,188.34,24.38]
[1722216131144,20.0,188.47,188.37,24.38]
[1722216131145,24.2448,188.47,188.37,24.38]
[1722216131327,0.34,188.46,188.37,24.38]
[1722216131730,0.17,188.46,188.37,24.38]
[1722216131933,0.34,188.47,188.37,24.38]
[1722216132246,0.34,188.47,188.4,24.38]
[1722216132541,0.17,188.46,188.4,24.38]
[1722216132750,20.0,188.45,188.38,45.0]
[1722216132946,4.5855,188.44,188.37,24.38]
[1722216133517,4.2456,188.43,188.37,24.38]
[1722216133727,15.9331,188.4,188.34,24.38]
[1722216134043,0.17,188.39,188.34,24.38]
[1722216134933,15.9331,188.4,188.34,24.38]
[1722216135121,15.9331,188.4,188.35,45.0]
[1722216136534,15.5251,188.45,188.37,24.38]
[1722216136736,0.34,188.44,188.37,24.38]
[1722216137125,0.34,188.44,188.42,12.2]
[1722216137446,0.34,188.44,188.43,12.2]
[1722216137447,0.17,188.44,188.43,12.2]
[1722216137618,15.5251,188.45,188.43,12.2]
[1722216137818,15.5251,188.45,188.44,12.2]
[1722216138118,6.5083,188.49,188.44,12.2]
[1722216138315,15.6553,188.5,188.48,12.2]
[1722216138519,15.6553,188.5,188.49,12.2]
[1722216139130,15.6553,188.5,188.46,12.2]
[1722216139341,20.0,188.48,188.45,12.2]
[1722216139650,0.34,188.47,188.45,12.2]
[1722216140145,0.17,188.47,188.45,12.2]
[1722216140536,4.5846,188.48,188.45,12.2]
[1722216140737,20.84,188.48,188.44,12.2]
[1722216140926,20.34,188.48,188.45,12.2]
[1722216141120,20.34,188.48,188.4,24.39]
[1722216141342,20.34,188.48,188.41,45.0]
[1722216141650,0.17,188.48,188.41,45.0]
[1722216141848,0.34,188.49,188.41,45.0]
[1722216142546,15.6553,188.5,188.43,24.39]
[1722216142845,20.0,188.49,188.43,24.39]
[1722216143048,15.6553,188.5,188.43,24.39]
[1722216143223,15.6553,188.5,188.44,45.0]
[1722216143940,15.6553,188.5,188.45,1.06106187]
[1722216144740,0.7721613,188.51,188.45,1.06106187]
[1722216145556,0.7721613,188.51,188.46,24.39]
[1722216146150,0.7721613,188.51,188.44,45.0]
[1722216146453,20.0,188.49,188.4,24.39]
[1722216146757,0.17,188.48,188.41,65.0]
[1722216146936,4.584,188.5,188.41,65.0]
[1722216147837,0.34,188.5,188.41,65.0]
[1722216148045,0.34,188.5,188.41,66.06121398]
[1722216148446,20.0,188.49,188.41,65.0]
[1722216148649,0.17,188.48,188.41,65.0]
[1722216149351,0.7721613,188.51,188.47,24.39]
[1722216149560,0.7721613,188.51,188.5,24.39]
[1722216149939,0.7721613,188.51,188.5,69.39]
[1722216151556,0.7721613,188.51,188.5,89.39]
[1722216152963,15.8976,188.62,188.5,89.39]
[1722216153140,15.8976,188.62,188.55,24.39]
[1722216153446,15.8976,188.62,188.56,45.0]
[1722216154173,15.8976,188.62,188.5,20.0]
[1722216154174,20.5,188.61,188.52,24.39]
[1722216154368,20.0,188.58,188.5,20.0]
[1722216154656,0.17,188.57,188.51,45.0]
[1722216155544,4.2435,188.53,188.47,2.08508821]
[1722216155872,15.9772,188.52,188.37,6.1969]
[1722216156041,0.5,188.51,188.43,24.39]
[1722216156236,20.0,188.49,188.43,24.39]
[1722216156438,0.17,188.48,188.4,24.39]
[1722216157148,0.84,188.48,188.4,24.39]
[1722216157563,0.34,188.48,188.4,24.39]
[1722216157762,0.17,188.48,188.4,24.39]
[1722216157961,15.9772,188.52,188.43,24.39]
[1722216158164,0.17,188.51,188.46,24.39]
[1722216158363,15.9772,188.52,188.46,24.39]
[1722216158673,15.9772,188.52,188.4,1.06118286]
[1722216158674,40.0,188.5,188.4,24.39]
[1722216158860,20.0,188.43,188.32,6.6624]
[1722216159049,20.0,188.43,188.35,24.39]
[1722216159253,0.17,188.42,188.35,24.39]
[1722216161148,0.34,188.42,188.35,24.39]
[1722216162248,20.0,188.41,188.35,24.39]
[1722216162963,0.34,188.42,188.35,24.39]
[1722216163360,5.50077314,188.45,188.35,24.39]
[1722216163669,20.0,188.42,188.36,45.0]
[1722216163867,20.0,188.42,188.35,24.39]
[1722216164875,0.17,188.41,188.35,24.39]
[1722216165966,0.17,188.42,188.36,45.0]
[1722216166378,20.0,188.46,188.36,45.0]
[1722216166572,20.0,188.44,188.36,45.0]
[1722216166753,0.17,188.43,188.36,45.0]
[1722216167460,20.0,188.42,188.35,24.39]
[1722216167689,20.67,188.41,188.35,24.39]
[1722216167879,20.0,188.41,188.35,24.39]
[1722216168576,20.0,188.41,188.32,24.39]
[1722216168773,0.34,188.4,188.32,24.39]
[1722216169671,15.6775,188.39,188.32,24.39]
[1722216169879,15.6775,188.39,188.33,45.0]
[1722216170669,20.0,188.36,188.29,24.39]
[1722216172059,20.0,188.36,188.3,45.0]
[1722216173584,0.17,188.35,188.29,24.39]
[1722216175979,20.0,188.38,188.29,24.39]
[1722216176160,0.17,188.37,188.3,45.0]
[1722216176355,0.34,188.38,188.3,45.0]
[1722216177078,20.34,188.38,188.29,24.39]
[1722216177282,20.0,188.36,188.29,24.39]
[1722216177572,0.17,188.35,188.29,24.39]
[1722216177971,0.67,188.35,188.29,24.39]
[1722216179176,0.17,188.35,188.29,24.39]
[1722216180354,20.0,188.37,188.3,45.0]
[1722216180578,0.34,188.36,188.29,24.39]
[1722216180778,0.17,188.36,188.29,24.39]
[1722216180953,21.7779,188.39,188.3,45.0]
[1722216181155,0.34,188.38,188.3,45.0]
[1722216181383,20.34,188.38,188.3,45.0]
[1722216181885,0.34,188.38,188.3,45.0]
[1722216182071,20.34,188.38,188.3,45.0]
[1722216183566,20.0,188.36,188.3,45.0]
[1722216185874,0.34,188.38,188.3,45.0]
[1722216186083,20.0,188.37,188.3,45.0]
[1722216186388,0.17,188.36,188.3,45.0]
[1722216188386,0.17,188.38,188.3,45.0]
[1722216188592,21.7779,188.39,188.32,24.39]